fUSD/lending_fUSD_20250304
["ID","MTS","AMOUNT","RATE_DAILY","PERIOD"]
[355406851,1741111832840,-1488.79407264,0.000123,2]
[355406852,1741111832862,-607.75,0.000123,2]
[355406853,1741111832886,-460.0,0.000123,2]
[355406875,1741111833069,-4427.83587868,0.000123,2]
[355406879,1741111833107,-159.76158701,0.000123,2]
[355406881,1741111833116,-3604.78841299,0.000123,2]
[355406885,1741111833140,-3539.35312534,0.000123,2]
[355406887,1741111833150,-4827.19874816,0.000123,2]
[355406889,1741111833162,-2316.94279017,0.000123,2]
[355406891,1741111833173,-7144.14153833,0.000123,2]
[355406893,1741111833183,-7144.14153833,0.000123,2]
[355406895,1741111833194,-7144.14153833,0.000123,2]
[355406897,1741111833204,-7144.14153833,0.000123,2]
[355406899,1741111833214,-7144.14153833,0.000123,2]
[355406901,1741111833223,-7144.14153833,0.00012314,2]
[355406903,1741111833233,-165.18,0.0001232,2]
[355406905,1741111833244,-413.2487384,0.00012335,2]
[355406907,1741111833254,-7144.14153833,0.00012348,2]
[355406909,1741111833264,-7144.14153833,0.00012383,2]
[355406911,1741111833275,-170.79066141,0.00012387,2]
[355406913,1741111833285,-13078.7035,0.00012387,2]
[355406915,1741111833295,-517.5123,0.00012387,2]
[355406917,1741111833304,-9280.3599,0.00012387,2]
[355406919,1741111833313,-1356.1948,0.00012387,2]
[355406921,1741111833323,-777.81,0.00012411,2]
[355406923,1741111833332,-777.81,0.00012411,2]
[355406925,1741111833342,-777.81,0.00012411,2]
[355406927,1741111833351,-7144.14153833,0.00012417,2]
[355406929,1741111833360,-500.0,0.00012448,2]
[355406947,1741111833531,-7144.14153833,0.00012452,2]
[355406948,1741111833542,-891.76157662,0.00012458,2]
[355406950,1741111833552,-165.18,0.00012467,2]
[355406952,1741111833562,-891.76157662,0.00012468,2]
[355406954,1741111833571,-891.76157662,0.00012477,2]
[355406956,1741111833580,-661.57569457,0.00012486,2]
[355406957,1741111833590,-7144.14153833,0.00012486,2]
[355406959,1741111833599,-200.0,0.00012486,2]
[355406961,1741111833608,-891.76157662,0.00012487,2]
[355406963,1741111833618,-266.79756271,0.00012487,2]
[355406965,1741111833628,-16352.00753184,0.00012487,2]
[355406966,1741111833638,-319.9054324,0.00012487,2]
[355406968,1741111833647,-2986.18626463,0.00012487,2]
[355406970,1741111833657,-15525.089,0.00012487,2]
[355406972,1741111833667,-8509.5424,0.00012487,2]
[355406974,1741111833677,-103808.9669,0.00012487,2]
[355406976,1741111833687,-2515.7489,0.00012487,2]
[355406977,1741111833696,-6901.0956,0.00012487,2]
[355406979,1741111833706,-1000.0,0.00012487,2]
[355406981,1741111833715,-7144.14153833,0.00012521,2]
[355406983,1741111833725,-7144.14153833,0.00012555,2]
[355406985,1741111833734,-313.12614498,0.00012573,2]
[355406986,1741111833744,-177.08082207,0.00012577,2]
[355406988,1741111833753,-1124.47756739,0.00012586,2]
[355406990,1741111833763,-1000.0,0.00012586,2]
[355406992,1741111833772,-604.79948188,0.00012586,3]
[355406993,1741111833781,-1000.0,0.00012586,2]
[355406995,1741111833790,-2555.589,0.00012586,2]
[355406997,1741111833799,-500.0,0.00012586,2]
[355406999,1741111833809,-500.0,0.00012586,2]
[355407001,1741111833823,-173.2912652,0.00012586,2]
[355407002,1741111833832,-318.85513702,0.00012586,2]
[355407004,1741111833842,-217.952,0.00012586,2]
[355407006,1741111833852,-461387.61795676,0.00012587,2]
[355407009,1741111833877,-307.6936,0.00012587,2]
[355407011,1741111833888,-478.31588386,0.00012587,2]
[355407013,1741111833900,-4312.48320138,0.00012587,2]
[355407017,1741111833934,-1238.0,0.00012587,2]
[355407019,1741111833946,-724.0,0.00012587,2]
[355407022,1741111833971,-708.97359572,0.00012587,2]
[355407430,1741111838166,-109558.64763543,0.00012587,2]
[355407433,1741111838176,-739239.60561623,0.00012587,2]
[355407437,1741111838190,-1683.3,0.00012587,2]
[355407445,1741111838224,-2873.2,0.00012587,2]
[355407449,1741111838235,-2087.79694,0.00012587,2]
[355407466,1741111838318,-10058.9064013,0.00012587,2]
[355407468,1741111838330,-47478.98132889,0.00012587,2]
[355407471,1741111838342,-403.3,0.00012587,2]
[355407473,1741111838353,-2305.37676752,0.00012587,2]
[355407481,1741111838428,-7684.00974,0.00012587,2]
[355407483,1741111838439,-1125.02238815,0.00012587,2]
[355407485,1741111838451,-3439.56,0.00012587,2]
[355407486,1741111838463,-929.4124,0.00012587,2]
[355407487,1741111838484,-1268.40797321,0.00012587,2]
[355407688,1741111840344,-3188.55,0.00012587,2]
[355407724,1741111840683,-18450.77340279,0.00012587,2]
[355407732,1741111840743,-9021.3577876,0.00012587,2]
[355407734,1741111840754,-6448.217627,0.00012587,2]
[355407736,1741111840765,-633.71999998,0.00012587,2]
[355408194,1741111845283,-37089.89875597,0.00012587,2]
[355408197,1741111845305,-26215.11631608,0.00012587,2]
[355408199,1741111845318,-377442.05641392,0.00012587,2]
[355408201,1741111845329,-510.4,0.00012587,2]
[355408209,1741111845391,-43127.38544219,0.00012587,2]
[355408212,1741111845409,-579315.43277965,0.00012587,2]
[355408342,1741111846695,-2142.16342046,0.00012587,2]
[355408344,1741111846707,-4290.15,0.00012587,2]
[355408346,1741111846719,-39016.09534664,0.00012587,2]
[355408348,1741111846731,-149140.02873905,0.00012587,2]
[355408351,1741111846746,-1720.0,0.00012587,2]
[355408354,1741111846765,-73460.22490122,0.00012587,2]
[355408370,1741111846886,-444.90771589,0.00012587,2]
[355408372,1741111846898,-8583.5,0.00012587,2]
[355408783,1741112079850,612.81,9.363e-05,2]
[355408784,1741112102597,157.1835265,0.0002301,120]
[355408785,1741112150502,390.5982005,0.00023,120]
[355408786,1741112394553,152.72,9.254e-05,2]
[355408821,1741113031450,-150.0,0.00010996,2]
[355408822,1741113031460,-1245.09553501,0.00010997,2]
[355408823,1741113031472,-2638.46326008,0.00010997,2]
[355408824,1741113031511,-2257.03968916,0.00010997,2]
[355408825,1741113031523,-393.35128636,0.00010997,2]
[355408826,1741113031533,-55.91068389,0.00010997,2]
[355408827,1741113031544,-94.08931611,0.00010997,2]
[355408828,1741113031555,-457.96518909,0.00010997,2]
[355408829,1741113031567,-537.81104251,0.00010997,2]
[355408830,1741113031579,-2411.4031204,0.00010997,2]
[355408831,1741113031589,-3407.179352,0.00010997,2]
[355408832,1741113031598,-503.38822232,0.00010997,2]
[355408833,1741113031609,-298.695,0.00010997,2]
[355408834,1741113031621,-3258.90208168,0.00010997,2]
[355408835,1741113031630,-4060.985304,0.00010997,2]
[355408836,1741113031640,-155.664536,0.00010997,2]
[355408837,1741113031649,-155.664536,0.00010997,2]
[355408838,1741113031659,-150.612379,0.00010997,2]
[355408839,1741113031668,-150.612379,0.00010997,2]
[355408840,1741113031678,-691.83,0.00011157,2]
[355408841,1741113031688,-2000.0,0.00011163,2]
[355408842,1741113031698,-1000.0,0.00011175,2]
[355408843,1741113031708,-170.33757884,0.0001118,2]
[355408844,1741113031718,-178.70508168,0.0001118,2]
[355408845,1741113031728,-23508.65239847,0.0001118,2]
[355408846,1741113031744,-1885.6802487,0.0001118,2]
[355408847,1741113031756,-295.49189213,0.0001118,2]
[355408848,1741113031768,-540.0,0.0001118,2]
[355408849,1741113031779,-535.47,0.0001118,2]
[355408850,1741113031790,-9468.51167434,0.0001118,2]
[355408851,1741113031799,-319.90543239,0.0001118,2]
[355408852,1741113031812,-661.57569457,0.0001118,2]
[355408853,1741113031821,-199.17632994,0.0001118,2]
[355408854,1741113031831,-500.0,0.00011279,2]
[355408855,1741113031841,-402.20137317,0.00011279,2]
[355408856,1741113031851,-500.0,0.00011279,2]
[355408857,1741113031860,-161.16572413,0.00011279,2]
[355408858,1741113031870,-500.0,0.00011279,2]
[355408859,1741113031879,-214.5746868,0.00011279,2]
[355408861,1741113031889,-500.0,0.00011279,2]
[355408862,1741113031898,-500.0,0.00011279,2]
[355408864,1741113031908,-562.0855463,0.00011279,2]
[355408866,1741113031918,-500.0,0.00011279,2]
[355408868,1741113031927,-500.0,0.00011279,2]
[355408871,1741113031937,-500.0,0.00011279,2]
[355408873,1741113031947,-500.0,0.00011279,2]
[355408875,1741113031957,-300.0,0.00011279,2]
[355408877,1741113031966,-176174.52402798,0.0001128,2]
[355408879,1741113031978,-251540.85679437,0.0001128,2]
[355408882,1741113031998,-4844.38900129,0.0001128,2]
[355408884,1741113032009,-7090.07533324,0.0001128,2]
[355408885,1741113032028,-1429.77615331,0.0001128,2]
[355408886,1741113032041,-3861.16061818,0.0001128,2]
[355408892,1741113037625,-512.071635,0.0001128,2]
[355408893,1741113037638,-5230.71081513,0.0001128,2]
[355408894,1741113037650,-2401.88667965,0.0001128,2]
[355408895,1741113037661,-3567.37200229,0.0001128,2]
[355408896,1741113037674,-37778.53055616,0.0001128,2]
[355408897,1741113037690,-172860.40675853,0.0001128,2]
[355408898,1741113037699,-36412.87300135,0.0001128,2]
[355408899,1741113037711,-2025.44595638,0.0001128,2]
[355408900,1741113037723,-4509.71223315,0.0001128,2]
[355408924,1741113038118,-12945.25124714,0.0001128,2]
[355408927,1741113038130,-9061.49703077,0.0001128,2]
[355408929,1741113038145,-2854.40002,0.0001128,2]
[355408931,1741113038158,-603.465158,0.0001128,2]
[355408934,1741113038170,-975.6839494,0.0001128,2]
[355408937,1741113038196,-2254.88152453,0.0001128,2]
[355408940,1741113038208,-5668.8,0.0001128,2]
[355408942,1741113038220,-4915.15698512,0.0001128,2]
[355408945,1741113038243,-232216.03837586,0.0001128,2]
[355409080,1741113039547,-1085.46581499,0.0001128,2]
[355409083,1741113039560,-4576.34491335,0.0001128,2]
[355409085,1741113039578,-963.19752,0.0001128,2]
[355409092,1741113039639,-431.39902613,0.0001128,2]
[355409095,1741113039651,-2549.680642,0.0001128,2]
[355409101,1741113039704,-319.83586182,0.0001128,2]
[355409109,1741113039770,-92428.30088436,0.0001128,2]
[355409111,1741113039781,-91587.54498656,0.0001128,2]
[355409118,1741113039835,-1011.06427204,0.0001128,2]
[355409431,1741113042825,-361.45361106,0.0001128,2]
[355409447,1741113042887,-11782.01652183,0.0001128,2]
[355409450,1741113042899,-1943.25529658,0.0001128,2]
[355409607,1741113044323,-68592.73450521,0.0001128,2]
[355409610,1741113044334,-13880.54347025,0.0001128,2]
[355409612,1741113044345,-1052.31193253,0.0001128,2]
[355409638,1741113044595,-2639.32562113,0.0001128,2]
[355409642,1741113044624,-4371.74957971,0.0001128,2]
[355409644,1741113044635,-103388.8901629,0.0001128,2]
[355409646,1741113044646,-5690.12792484,0.0001128,2]
[355409648,1741113044658,-156059.66773286,0.0001128,2]
[355409650,1741113044669,-1875.56927,0.0001128,2]
[355409654,1741113044697,-218508.70000211,0.0001128,2]
[355409657,1741113044708,-1264.6702155,0.0001128,2]
[355409659,1741113044719,-12888.52295393,0.0001128,2]
[355409724,1741113045553,-18852.11818387,0.0001128,2]
[355409732,1741113045628,-3551.53,0.0001128,2]
[355409734,1741113045639,-435.15,0.0001128,2]
[355409737,1741113045651,-1203.5063042,0.0001128,2]
[355409739,1741113045663,-2428.2861743,0.0001128,2]
[355409743,1741113045691,-31841.96700116,0.0001128,2]
[355409745,1741113045703,-12570.76769347,0.0001128,2]
[355409752,1741113045758,-658.616,0.0001128,2]
[355409754,1741113045774,-25830.02729761,0.0001128,2]
[355409757,1741113045794,-664.5908,0.0001128,2]
[355409759,1741113045817,-2746.61465141,0.0001128,2]
[355409760,1741113045840,-1325.95192759,0.0001128,2]
[355409768,1741113046047,-5545.40729875,0.0001128,2]
[355409775,1741113196852,700.94,8.791e-05,2]
[355409777,1741113676154,294.70035821,0.00022,120]
[355409778,1741113788623,152.6,0.00010217,2]
[355409779,1741113856535,2000.0,0.00010091,2]
[355409780,1741113869437,1000.0,0.00010091,2]
[355409781,1741113928835,701.44,0.00010071,2]
[355409782,1741114070556,627.69,0.00010077,2]
[355409783,1741114114733,150.0,0.00010069,7]
[355409784,1741114122133,509.62,0.00010069,2]
[355409791,1741114203729,-269.57,0.0001029,2]
[355409792,1741114203762,-150.0,0.000103,2]
[355409793,1741114203797,-200.0,0.00010331,2]
[355409795,1741114203827,-164.17,0.00010343,2]
[355409796,1741114203858,-179.27,0.00010358,2]
[355409798,1741114203890,-4672.97938971,0.00010358,2]
[355409799,1741114203949,-2243.31735584,0.00010358,2]
[355409800,1741114203985,-152.6,0.00010401,2]
[355409801,1741114204022,-300.0,0.00010411,2]
[355409802,1741114204055,-2029.54022712,0.00010412,2]
[355409823,1741114231768,-1865.45817321,0.00010412,2]
[355409824,1741114231879,-12255.20306442,0.00010412,2]
[355409825,1741114231891,-1582.22003,0.00010412,2]
[355409826,1741114232046,-6167.57850525,0.00010412,2]
[355409827,1741114232056,-150.0,0.00010466,2]
[355409828,1741114232068,-539.54,0.000105,2]
[355409829,1741114232078,-152.6,0.00010585,2]
[355409830,1741114232088,-150.99,0.00010585,2]
[355409831,1741114232097,-4292.13,0.00010585,2]
[355409833,1741114232107,-815.87,0.00010585,2]
[355409835,1741114232117,-4987.42,0.00010585,2]
[355409837,1741114232126,-3014.52,0.00010585,2]
[355409839,1741114232136,-250.0,0.0001059,2]
[355409841,1741114232145,-224.29,0.00010602,2]
[355409843,1741114232154,-150.0,0.00010664,2]
[355409845,1741114232164,-500.0,0.00010665,2]
[355409847,1741114232173,-152.6,0.00010768,2]
[355409849,1741114232182,-882.38,0.00010937,2]
[355409851,1741114232191,-152.6,0.00010952,2]
[355409853,1741114232201,-150.0,0.00010959,2]
[355409855,1741114232210,-344.56,0.00010959,2]
[355409857,1741114232220,-344.56,0.00010959,2]
[355409859,1741114232228,-344.56,0.00010959,2]
[355409861,1741114232238,-344.56,0.00010959,2]
[355409863,1741114232247,-344.56,0.00010959,2]
[355409865,1741114232256,-344.56,0.00010959,2]
[355409867,1741114232266,-166.61326808,0.0001098,2]
[355409869,1741114232275,-550.0,0.00011,2]
[355409891,1741114232458,-700.94,0.00011055,2]
[355409894,1741114232481,-2734.59642864,0.00011072,2]
[355409896,1741114232491,-777.67,0.00011082,2]
[355409897,1741114232500,-152.6,0.00011136,2]
[355409900,1741114232509,-500.0,0.00011178,2]
[355409902,1741114232519,-1000.0,0.00011179,2]
[355409904,1741114232528,-179.10545168,0.0001118,2]
[355409906,1741114232538,-178.70508165,0.0001118,2]
[355409907,1741114232547,-6508.0123914,0.0001118,2]
[355409910,1741114232557,-178.85898865,0.0001118,2]
[355409911,1741114232566,-27060.17967703,0.0001118,2]
[355409914,1741114232576,-330.25426208,0.0001118,2]
[355409916,1741114232585,-433.40598907,0.00011227,2]
[355409918,1741114232595,-504.47064203,0.0001127,2]
[355409920,1741114232604,-500.0,0.00011273,2]
[355409922,1741114232613,-2044.471,0.00011276,2]
[355409924,1741114232623,-12357.00000096,0.00011277,2]
[355409926,1741114232632,-608444.28064075,0.00011277,2]
[355410150,1741114237982,-211.25176049,0.00011276,2]
[355410151,1741114237992,-500.0,0.00011276,2]
[355410152,1741114238002,-500.0,0.00011276,2]
[355410153,1741114238012,-308.74823951,0.00011276,2]
[355410154,1741114238031,-191.25176049,0.00011276,2]
[355410157,1741114238041,-500.0,0.00011276,2]
[355410158,1741114238051,-169.75823951,0.00011276,2]
[355410161,1741114238068,-263.20647654,0.00011276,2]
[355410163,1741114238077,-500.0,0.00011276,2]
[355410164,1741114238086,-500.0,0.00011276,2]
[355410165,1741114238096,-500.0,0.00011276,2]
[355410166,1741114238105,-500.0,0.00011276,2]
[355410167,1741114238114,-500.0,0.00011276,2]
[355410168,1741114238123,-500.0,0.00011276,2]
[355410170,1741114238132,-500.0,0.00011276,2]
[355410172,1741114238141,-500.0,0.00011276,2]
[355410174,1741114238150,-4641.8847391,0.00011277,2]
[355410177,1741114238165,-1106.76668986,0.00011277,2]
[355410347,1741114239738,-4681.1217314,0.00011277,2]
[355410349,1741114239755,-866.99204063,0.00011277,2]
[355410947,1741114245615,-408.30563646,0.00011277,2]
[355410954,1741114245673,-1002.47370167,0.00011277,2]
[355410968,1741114245786,-290.26121997,0.00011277,2]
[355410971,1741114245798,-1269.21223999,0.00011277,2]
[355410973,1741114245809,-620.13875325,0.00011277,2]
[355410975,1741114245820,-113614.75136112,0.00011277,2]
[355410977,1741114245833,-362.9397613,0.00011277,2]
[355410979,1741114245842,-111175.48922339,0.0001128,2]
[355410981,1741114245851,-85556.14023531,0.0001128,2]
[355410983,1741114245863,-57080.78333376,0.0001128,2]
[355410986,1741114245874,-12866.4,0.0001128,2]
[355411069,1741114339126,197.42,0.00010091,2]
[355411070,1741114353230,150.0,0.00022,120]
[355411072,1741114659200,630.84,8.831e-05,2]
[355411075,1741115175290,285.83,0.00010198,2]
[355411076,1741115175339,383.63,0.00010198,2]
[355411077,1741115346665,-150.0,0.00010263,7]
[355411078,1741115346693,-150.0,0.0001029,2]
[355411079,1741115346720,-1057.81,0.00010317,2]
[355411080,1741115346747,-550.0,0.00010335,2]
[355411081,1741115346779,-269.57,0.00010354,2]
[355411082,1741115346809,-3535.06931255,0.00010354,2]
[355411083,1741115346962,-3056.73407898,0.00010354,2]
[355411085,1741115378839,224.29,0.00010227,2]
[355411100,1741115431890,-178.98,0.00010563,2]
[355411101,1741115431900,-176.76,0.00010595,2]
[355411102,1741115431911,-101.28784429,0.00010595,2]
[355411103,1741115431923,-352.86840455,0.00010595,2]
[355411104,1741115431933,-122.18482156,0.00010649,2]
[355411105,1741115431945,-77.81517844,0.00010649,2]
[355411106,1741115431955,-1904.27874131,0.00010731,2]
[355411107,1741115431965,-250.0,0.00010731,2]
[355411108,1741115431975,-425.51795599,0.0001076,2]
[355411109,1741115431991,-1405.08204401,0.0001076,2]
[355411110,1741115432001,-178.98,0.000108,2]
[355411111,1741115432010,-344.56,0.00010978,2]
[355411112,1741115432021,-550.0,0.00011,2]
[355411113,1741115432031,-178.98,0.00011038,2]
[355411114,1741115432041,-433.40598907,0.00011068,2]
[355411115,1741115432051,-630.84,0.00011095,2]
[355411116,1741115432063,-250.0,0.00011097,2]
[355411117,1741115432073,-150.0,0.00011097,2]
[355411118,1741115432085,-241.78,0.000111,2]
[355411119,1741115432095,-688.64,0.000111,2]
[355411120,1741115432105,-23900.0,0.00011105,2]
[355411121,1741115432115,-1469.72,0.00011105,2]
[355411122,1741115432125,-1000.0,0.00011115,2]
[355411123,1741115432135,-251.05,0.00011152,2]
[355411124,1741115432145,-10747.25767156,0.0001116,2]
[355411125,1741115432155,-150.0,0.00011169,2]
[355411126,1741115432165,-440.50142536,0.0001117,2]
[355411127,1741115432178,-812.79911566,0.0001117,2]
[355411128,1741115432200,-1903.58,0.0001117,2]
[355411129,1741115432213,-136.10682898,0.0001117,2]
[355411130,1741115432223,-179.10545168,0.0001118,2]
[355411131,1741115432233,-2199.78771934,0.0001118,2]
[355411132,1741115432306,-9000.84512242,0.0001118,2]
[355411133,1741115432316,-12277.78037127,0.0001118,2]
[355411134,1741115432328,-170.62393027,0.0001118,2]
[355411135,1741115432338,-654.10636685,0.0001119,2]
[355411136,1741115432350,-217.69932042,0.0001119,2]
[355411137,1741115432361,-330.61917551,0.0001119,2]
[355411138,1741115432372,-1903.3540086,0.000112,2]
[355411139,1741115432384,-2307.06378239,0.000112,2]
[355411140,1741115432394,-500.0,0.00011273,2]
[355411141,1741115432404,-153.30394952,0.00011273,2]
[355411142,1741115432414,-150.90162229,0.00011273,2]
[355411143,1741115432424,-161.24546265,0.00011273,2]
[355411145,1741115432434,-178.98,0.00011275,2]
[355411147,1741115432443,-500.0,0.00011279,2]
[355411149,1741115432453,-500.0,0.00011279,2]
[355411151,1741115432463,-500.0,0.00011279,2]
[355411153,1741115432472,-500.0,0.00011279,2]
[355411154,1741115432482,-500.0,0.00011279,2]
[355411156,1741115432492,-500.0,0.00011279,2]
[355411158,1741115432501,-500.0,0.00011279,2]
[355411160,1741115432511,-500.0,0.00011279,2]
[355411162,1741115432520,-500.0,0.00011279,2]
[355411164,1741115432530,-500.0,0.00011279,2]
[355411166,1741115432540,-503.07530124,0.00011279,2]
[355411168,1741115432551,-300.0,0.00011279,2]
[355411170,1741115432560,-500.0,0.00011279,2]
[355411172,1741115432570,-500.0,0.00011279,2]
[355411175,1741115432583,-492.55189667,0.00011279,2]
[355411178,1741115432592,-500.0,0.00011279,2]
[355411181,1741115432601,-357.73569392,0.00011279,2]
[355411184,1741115432617,-471.50130044,0.00011279,2]
[355411186,1741115432627,-500.0,0.00011279,2]
[355411188,1741115432636,-500.0,0.00011279,2]
[355411190,1741115432646,-500.0,0.00011279,2]
[355411191,1741115432655,-500.0,0.00011279,2]
[355411192,1741115432665,-557.89411675,0.00011279,2]
[355411193,1741115432675,-2153343.69342925,0.0001128,2]
[355411198,1741115437992,-41150.41182057,0.0001128,2]
[355411199,1741115438005,-385.36424049,0.0001128,2]
[355411200,1741115438017,-865.69,0.0001128,2]
[355411201,1741115438030,-13186.27855063,0.0001128,2]
[355411202,1741115438041,-100832.00816383,0.0001128,2]
[355411203,1741115438059,-3629.02413031,0.0001128,2]
[355411204,1741115438073,-1145.19149778,0.0001128,2]
[355411205,1741115438096,-987.54270914,0.0001128,2]
[355411206,1741115438112,-522.92894119,0.0001128,2]
[355411207,1741115438125,-1760.36597552,0.0001128,2]
[355411208,1741115438151,-9314.39140514,0.0001128,2]
[355411209,1741115438184,-3451.34324685,0.0001128,2]
[355411210,1741115438196,-16281.47410874,0.0001128,2]
[355411211,1741115438207,-10123.80765997,0.0001128,2]
[355411212,1741115438223,-2961.04576981,0.0001128,2]
[355411213,1741115438355,-4192.942632,0.0001128,2]
[355411214,1741115438367,-1330.55565,0.0001128,2]
[355411215,1741115438393,-9487.32132093,0.0001128,2]
[355411216,1741115438407,-11892.72271579,0.0001128,2]
[355411217,1741115438419,-12075.92852,0.0001128,2]
[355411219,1741115438432,-27743.35918289,0.0001128,2]
[355411221,1741115438445,-837.40192961,0.0001128,2]
[355411224,1741115438458,-432.43,0.0001128,2]
[355411226,1741115438472,-180031.66322133,0.0001128,2]
[355411238,1741115439916,-805.15368934,0.0001128,2]
[355411241,1741115440076,-607946.86203897,0.0001128,2]
[355411242,1741115440131,-12414.35878645,0.0001128,2]
[355411243,1741115440186,-10532.4207987,0.0001128,2]
[355411246,1741115441064,-318.72088959,0.0001128,2]
[355411247,1741115441076,-276.5242758,0.0001128,2]
[355411248,1741115441094,-12124.56916818,0.0001128,2]
[355411326,1741115444173,-25600.49998047,0.0001128,2]
[355411327,1741115444185,-1184.2,0.0001128,2]
[355411328,1741115444200,-838.4232056,0.0001128,2]
[355411329,1741115444227,-40775.99021145,0.0001128,2]
[355411330,1741115444238,-1358.63443479,0.0001128,2]
[355411350,1741115445846,-167.61697501,0.00011273,2]
[355411352,1741115445856,-402.99296733,0.0001128,2]
[355411354,1741115445868,-1302.84339328,0.0001128,2]
[355411356,1741115445880,-98356.85031722,0.0001128,2]
[355411359,1741115445891,-3208.15286094,0.0001128,2]
[355411368,1741115445951,-166251.23787545,0.0001128,2]
[355411369,1741115445962,-2107.43997607,0.0001128,2]
[355411370,1741115446008,-497.54072326,0.0001128,2]
[355411371,1741115446020,-292.83203992,0.0001128,2]
[355411372,1741115446031,-1940.02423999,0.0001128,2]
[355411373,1741115446117,-4391.4,0.0001128,2]
[355411374,1741115446129,-9736.75767877,0.0001128,2]
[355411788,1741115662459,567.75,9.171e-05,2]
[355411790,1741115759105,150.0,0.0001,2]
[355411791,1741116048937,1000.0,0.00010172,2]
[355411792,1741116052392,266.5795311,0.00010205,2]
[355411793,1741116186396,150.0,0.00010195,7]
[355411794,1741116224673,561.15,0.00010206,2]
[355411795,1741116227810,254.67,0.00010206,2]
[355411796,1741116231897,-181.89,0.00010274,2]
[355411797,1741116231922,-1852.42,0.00010304,2]
[355411798,1741116231947,-7965.69,0.00010305,2]
[355411819,1741116632078,-67.1,0.00010305,2]
[355411820,1741116632088,-150.0,0.00010332,2]
[355411821,1741116632098,-173.97,0.00010414,2]
[355411822,1741116632107,-165.68,0.00010535,2]
[355411823,1741116632117,-819.29,0.0001055,2]
[355411824,1741116632127,-181.89,0.00010583,2]
[355411825,1741116632136,-181.89,0.00010891,2]
[355411826,1741116632148,-184.86840001,0.00010959,2]
[355411829,1741116633583,-15.13159999,0.00010959,2]
[355411830,1741116633594,-236.148959,0.00010997,2]
[355411831,1741116633604,-222.7084704,0.00010997,2]
[355411832,1741116633616,-13.4404886,0.00010997,2]
[355411833,1741116633627,-150.0,0.00011,2]
[355411834,1741116633638,-430.30469544,0.00011007,2]
[355411835,1741116633677,-223.80167141,0.00011007,2]
[355411836,1741116633687,-508.8460073,0.00011054,2]
[355411837,1741116633699,-155.23408521,0.00011073,2]
[355411838,1741116633709,-91.13823608,0.00011073,2]
[355411839,1741116633722,-69.10043312,0.00011073,2]
[355411840,1741116633732,-424.37669763,0.00011073,2]
[355411841,1741116633742,-166.23449732,0.00011099,2]
[355411842,1741116633752,-192.74358411,0.00011099,2]
[355411843,1741116633762,-284.21045742,0.00011099,2]
[355411844,1741116633775,-150.0,0.00011099,2]
[355411845,1741116633786,-11575.54195505,0.000111,2]
[355411846,1741116633799,-1278.50942405,0.000111,2]
[355411847,1741116633812,-648.9264166,0.000111,2]
[355411848,1741116633831,-428.19495215,0.000111,2]
[355411849,1741116633939,-1768.90225276,0.000111,2]
[355411856,1741116637891,-3769.5,0.000111,2]
[355411857,1741116637902,-2656.942568,0.000111,2]
[355411858,1741116637914,-5319.05926736,0.000111,2]
[355411859,1741116637947,-5314.01380108,0.000111,2]
[355411860,1741116638161,-35351.91359048,0.000111,2]
[355411861,1741116638173,-621.82383242,0.000111,2]
[355411862,1741116638184,-1076.11860535,0.000111,2]
[355411863,1741116638204,-272.98151379,0.000111,2]
[355411864,1741116638216,-2520.35524311,0.000111,2]
[355411865,1741116638227,-4481.15,0.000111,2]
[355411866,1741116638239,-13740.6,0.000111,2]
[355411867,1741116638250,-22167.16644822,0.000111,2]
[355411868,1741116638262,-1978.92991456,0.000111,2]
[355411869,1741116638297,-265.1909128,0.000111,2]
[355411870,1741116638309,-806.74101386,0.000111,2]
[355411871,1741116638324,-5140.61249455,0.000111,2]
[355411904,1741116640047,-776.51796987,0.00010442,2]
[355411905,1741116640205,-266.45984744,0.00010442,2]
[355411906,1741116640373,-957.02218269,0.00010442,2]
[355411907,1741116640383,-424.56480787,0.00010977,2]
[355411908,1741116640393,-23937.50293249,0.000111,2]